bitfinex-derivatives/quotes_ETHF0:USTF0_20250627
["timestamp","ask_amount","ask_price","bid_price","bid_amount"]
[1750997112382,2.51039244,2447.0,2446.9,0.4085]
[1750997112975,1.08029244,2447.0,2446.9,0.4085]
[1750997113176,1.08029244,2447.0,2446.9,3.34946022]
[1750997113576,0.7256,2447.5,2447.4,0.40841]
[1750997113776,5.65426815,2447.7,2447.6,0.40838]
[1750997114187,3.2078,2447.7,2447.6,0.40838]
[1750997114481,5.65426815,2447.7,2447.6,0.40838]
[1750997115186,3.2078,2447.7,2447.6,0.40838]
[1750997118389,3.2078,2448.0,2447.9,0.40833]
[1750997118691,3.2078,2448.0,2447.9,3.34929022]
[1750997119590,1.413,2448.2,2448.1,0.4083]
[1750997122081,3.9133,2448.3,2448.2,0.40828]
[1750997122783,3.2078,2448.3,2448.2,0.40828]
[1750997123593,5.298,2448.3,2448.2,0.40828]
[1750997126294,5.298,2448.3,2447.9,6.328]
[1750997126497,1.3909,2448.2,2448.1,0.4083]
[1750997126692,3.2078,2448.3,2448.2,0.40828]
[1750997126897,3.921,2448.3,2448.2,0.40828]
[1750997127294,5.3119,2448.3,2448.2,0.40828]
[1750997139215,8.25286022,2448.3,2448.1,0.40829]
[1750997139421,1.3264,2448.2,2448.1,0.40829]
[1750997143121,2.41120734,2448.2,2448.1,0.40829]
[1750997147122,1.08480734,2448.2,2448.1,0.40829]
[1750997149121,1.08480734,2448.2,2448.1,1.13439]
[1750997150420,1.08480734,2448.2,2448.1,0.40829]
[1750997158530,2.49320734,2448.2,2448.1,0.40829]
[1750997159625,2.49320734,2448.2,2447.7,44.0078]
[1750997159822,2.94096022,2447.8,2447.7,3.2078]
[1750997160029,2.94096022,2447.8,2447.6,0.40837]
[1750997160225,2.7363,2447.7,2447.6,0.40837]
[1750997161019,0.40844,2447.3,2447.0,4.03225014]
[1750997161323,3.34943022,2447.1,2446.7,0.40853]
[1750997161531,2.94096022,2446.9,2446.8,0.40851]
[1750997161726,1.3598,2447.0,2446.9,0.4085]
[1750997161918,1.3598,2447.0,2446.8,0.40851]
[1750997162122,1.3598,2447.0,2446.9,0.4085]
[1750997162632,2.44509975,2447.0,2446.9,0.4085]
[1750997163128,2.44509975,2447.0,2446.5,47.125]
[1750997163434,4.70925022,2447.0,2446.7,0.40852]
[1750997163631,4.30076022,2447.0,2446.9,0.4085]
[1750997163832,5.38468968,2447.0,2446.9,0.4085]
[1750997164432,2.44372946,2447.0,2446.9,0.4085]
[1750997164736,2.44372946,2447.0,2446.8,0.4085]
[1750997164928,3.2078,2446.9,2446.8,0.4085]
[1750997165230,4.5673,2446.9,2446.8,0.4085]
[1750997165841,4.5673,2446.9,2446.7,0.40852]
[1750997166034,0.6701,2446.8,2446.5,6.325]
[1750997166226,1.3947,2446.7,2446.6,0.40855]
[1750997168234,1.3947,2446.7,2446.5,6.73355]
[1750997168539,1.3947,2446.7,2446.5,0.40856]
[1750997168540,1.80323,2446.7,2446.5,0.40856]
[1750997168723,6.84576022,2446.6,2446.1,5.9002]
[1750997168928,6.84576022,2446.6,2446.3,0.40859]
[1750997168929,8.69792022,2446.6,2446.3,0.40859]
[1750997169432,0.40857,2446.5,2446.2,0.4086]
[1750997169633,1.4436,2446.4,2446.1,3.2078]
[1750997169833,2.1201,2446.4,2446.3,0.4086]
[1750997170029,2.1201,2446.4,2446.2,0.40861]
[1750997170237,3.2078,2446.3,2446.1,0.40863]
[1750997170437,4.6514,2446.3,2446.2,0.40861]
[1750997171234,4.6514,2446.3,2446.1,0.40862]
[1750997171533,4.6514,2446.3,2445.9,6.327]
[1750997171534,4.6514,2446.3,2446.2,0.40861]
[1750997172233,4.6514,2446.3,2445.9,9.26796022]
[1750997172933,4.6514,2446.3,2446.2,0.40861]
[1750997173829,1.4436,2446.3,2446.2,0.40861]
[1750997180742,0.6765,2446.4,2446.3,0.4086]
[1750997184540,3.9048,2446.6,2446.5,0.40856]
[1750997184745,3.9048,2446.6,2446.5,3.34952022]
[1750997185950,3.2078,2446.6,2446.5,3.34952022]
[1750997186449,3.2078,2446.6,2446.5,9.71152022]
[1750997188150,3.2078,2446.6,2446.4,0.6734]
[1750997188453,3.2078,2446.6,2446.5,0.40856]
[1750997188651,4.6489,2446.6,2446.5,0.40856]
[1750997189245,3.2078,2446.6,2446.5,0.40856]
[1750997189854,3.2078,2446.6,2446.5,3.34952022]
[1750997191557,4.28979485,2446.6,2446.5,3.34952022]
[1750997194160,3.2078,2446.6,2446.5,3.34952022]
[1750997195561,0.7216,2446.7,2446.6,0.40855]
[1750997195759,1.80441502,2446.7,2446.6,0.40855]
[1750997196059,1.80437241,2446.7,2446.6,0.40855]
[1750997196264,0.7216,2446.7,2446.6,0.40855]
[1750997197058,0.6632,2447.0,2446.9,0.4085]
[1750997197462,1.74586538,2447.0,2446.9,0.4085]
[1750997197663,3.08996538,2447.0,2446.9,0.4085]
[1750997199560,1.74586538,2447.0,2446.9,3.34946022]
[1750997201671,1.08266538,2447.0,2446.9,0.4085]
[1750997201872,1.08266538,2447.0,2446.8,43.74096022]
[1750997201873,1.4458,2447.1,2447.0,0.40848]
[1750997202068,3.85851992,2447.1,2447.0,0.40848]
[1750997202768,2.7766,2447.1,2447.0,0.40848]
[1750997203873,1.4458,2447.1,2447.0,3.34944022]
[1750997207175,2.52657813,2447.1,2447.0,3.34944022]
[1750997209371,2.52657813,2447.1,2447.0,0.40848]
[1750997211772,2.52657813,2447.1,2447.0,3.34944022]
[1750997212383,1.4458,2447.1,2447.0,3.34944022]
[1750997213675,2.52671604,2447.1,2447.0,3.34944022]
[1750997215182,2.52671604,2447.1,2447.0,0.40848]
[1750997215681,3.87171604,2447.1,2447.0,0.40848]
[1750997217881,3.87171604,2447.1,2446.6,3.2078]
[1750997218083,3.2078,2446.9,2446.8,25.16151]
[1750997218380,4.28871604,2446.9,2446.4,6.348]
[1750997218579,3.2078,2446.6,2446.5,0.40855]
[1750997218776,4.28962967,2446.6,2446.5,0.40855]
[1750997218981,4.28962967,2446.6,2446.4,6.75657]
[1750997219177,3.10203674,2446.5,2446.4,0.40857]
[1750997219783,3.10203674,2446.5,2446.4,3.34953022]
[1750997221781,3.10203674,2446.5,2446.1,9.28896022]
[1750997221986,3.2078,2446.3,2446.2,0.40861]
[1750997222179,4.28935058,2446.3,2446.2,0.40861]
[1750997222380,6.31375058,2446.3,2446.2,0.40861]
[1750997223384,6.31375058,2446.3,2446.1,9.28896022]
[1750997223589,1.4464,2446.2,2446.1,9.69758022]
[1750997226493,3.8719,2446.3,2446.2,0.40861]
[1750997232996,3.2078,2446.3,2446.2,1.07951]
[1750997233197,1.3983,2446.4,2446.3,0.4086]
[1750997233393,1.3983,2446.4,2446.3,3.34956022]
[1750997234002,1.3983,2446.4,2446.3,0.4086]
[1750997239011,0.7017,2446.5,2446.4,0.40858]
[1750997239311,1.78163743,2446.5,2446.4,0.40858]
[1750997239608,3.24413743,2446.5,2446.4,0.40858]
[1750997244513,3.65271743,2446.5,2446.3,0.40859]
[1750997244720,2.44183743,2446.4,2446.3,0.40859]
[1750997249120,2.85041743,2446.4,2446.3,0.40859]
[1750997249320,2.85041743,2446.4,2446.2,6.7436]
[1750997249519,3.19863743,2446.3,2446.2,6.7436]
[1750997254424,3.19863743,2446.3,2446.2,0.4086]
[1750997255225,3.60723743,2446.3,2446.2,0.4086]
[1750997255722,3.60723743,2446.3,2446.1,0.40862]
[1750997256020,2.41013743,2446.2,2446.1,0.40862]
[1750997256523,2.41013743,2446.2,2446.1,0.40863]
[1750997258325,2.81874743,2446.2,2446.1,0.40863]
[1750997259226,2.41013743,2446.2,2446.1,0.40863]
[1750997266929,5.61793743,2446.2,2446.1,0.40863]
[1750997268533,6.02654743,2446.2,2446.0,0.40864]
[1750997268735,2.50103743,2446.1,2446.0,0.40864]
[1750997272632,2.50103743,2446.1,2445.8,0.40868]
[1750997272829,3.61647,2445.9,2445.6,0.4087]
[1750997273028,2.52123743,2445.8,2445.6,0.4087]
[1750997273229,1.4413,2445.8,2445.6,0.4087]
[1750997273430,0.6869,2445.7,2445.6,0.4087]
[1750997275230,0.6869,2445.7,2445.5,9.68168022]
[1750997275538,1.08310455,2445.6,2445.5,9.68168022]
[1750997275735,2.52540455,2445.6,2445.5,9.68168022]
[1750997276238,5.73276622,2445.6,2445.5,9.68168022]
[1750997276431,5.73276622,2445.6,2445.4,0.6948]
[1750997276432,6.14148622,2445.6,2445.4,0.40874]
[1750997276631,4.6501,2445.6,2445.4,0.40874]
[1750997276827,4.6501,2445.6,2445.2,2.94096022]
[1750997276828,6.14743243,2445.5,2445.2,0.40877]
[1750997277036,1.85106,2445.4,2445.1,0.40878]
[1750997277334,1.4423,2445.3,2445.2,0.40878]
[1750997277532,4.6501,2445.3,2444.9,2.94096022]
[1750997277736,4.6501,2445.3,2445.1,0.40879]
[1750997278333,5.05887,2445.3,2445.0,0.4088]
[1750997278538,1.4469,2445.2,2445.0,0.4088]
[1750997279138,1.4469,2445.2,2445.1,0.4088]
[1750997279640,1.4469,2445.2,2445.0,0.40881]
[1750997279840,1.85568,2445.2,2444.9,3.34978022]
[1750997280040,1.74284075,2445.1,2445.0,0.40881]
[1750997280335,2.1081,2445.1,2445.0,0.40881]
[1750997280640,0.6612,2445.1,2445.0,0.40881]
[1750997280842,4.6547,2445.3,2444.9,2.94096022]
[1750997281145,5.3159,2445.3,2445.1,0.40879]
[1750997281646,2.49228682,2445.2,2444.7,2.94096022]
[1750997281842,2.49228682,2445.2,2445.0,0.40881]
[1750997281843,1.08158682,2445.1,2445.0,0.40881]
[1750997283232,1.4107,2445.2,2444.9,2.94096022]
[1750997283233,3.869,2445.3,2444.9,2.94096022]
[1750997283436,3.869,2445.3,2445.1,0.40879]
[1750997283637,5.2797,2445.3,2445.1,0.40879]
[1750997284243,5.68847,2445.3,2445.1,0.40879]
[1750997284434,1.75898,2445.2,2445.0,0.4088]
[1750997284637,1.3502,2445.1,2445.0,0.4088]
[1750997287647,3.869,2445.3,2445.2,0.40878]
[1750997287846,4.94826828,2445.3,2445.2,0.40878]
[1750997288145,6.31176828,2445.3,2445.2,0.40878]
[1750997288849,5.2325,2445.3,2445.2,0.40878]
[1750997290251,5.64126,2445.3,2445.2,0.40878]
[1750997290453,5.2325,2445.3,2445.2,0.40878]
[1750997290649,3.2078,2445.3,2445.2,3.34974022]
[1750997291348,1.3969,2445.5,2445.4,0.40875]
[1750997293050,1.80563,2445.5,2445.3,0.40875]
[1750997293252,1.423,2445.4,2445.3,0.40875]
[1750997297451,1.83175,2445.4,2445.3,0.40875]
[1750997299156,2.50293236,2445.4,2445.3,0.40875]
[1750997299358,2.91168236,2445.4,2445.2,0.40877]
[1750997299558,3.2078,2445.3,2445.2,0.40877]
[1750997299753,4.5973,2445.3,2445.2,0.40877]
[1750997302252,5.6785355,2445.3,2445.2,0.40877]
[1750997305262,4.2890355,2445.3,2445.2,0.40877]
[1750997307363,4.2890355,2445.3,2445.2,0.40878]
[1750997307965,5.7084355,2445.3,2445.2,0.40878]
[1750997308160,1.0812355,2445.3,2445.2,3.34974022]
[1750997309555,1.0812355,2445.3,2445.2,0.40878]
[1750997309760,4.2890355,2445.3,2445.2,0.40878]
[1750997310661,6.4133355,2445.3,2445.2,0.40878]
[1750997311166,6.4133355,2445.3,2445.0,0.7234]
[1750997311355,1.0812355,2445.2,2445.1,0.4088]
[1750997311558,2.5061355,2445.2,2445.1,0.4088]
[1750997314267,0.6994,2445.3,2445.2,0.40878]
[1750997314468,1.78257148,2445.3,2445.2,0.40878]
[1750997317269,3.11457148,2445.3,2445.2,0.40878]
[1750997320773,1.78257148,2445.3,2445.2,3.34974022]
[1750997324676,1.08317148,2445.3,2445.2,3.34974022]
[1750997325170,1.08317148,2445.3,2445.2,8.34974022]
[1750997325475,0.6894,2445.8,2445.7,0.4087]
[1750997325677,4.6526,2445.9,2445.8,0.40868]
[1750997325972,3.2078,2445.9,2445.8,0.40868]
[1750997326172,3.2078,2445.9,2445.8,1.13328]
[1750997327967,1.3658,2446.0,2445.9,0.40866]
[1750997333365,2.7056,2446.0,2445.9,0.40866]
[1750997337475,3.77894061,2446.0,2445.9,0.40866]
[1750997338078,4.18759061,2446.0,2445.9,0.40866]
[1750997338482,3.77894061,2446.0,2445.9,0.40866]
[1750997339381,4.18759061,2446.0,2445.9,0.40866]
[1750997339882,3.77894061,2446.0,2445.9,0.40866]
[1750997340376,4.18759061,2446.0,2445.9,0.40866]
[1750997340776,3.77894061,2446.0,2445.9,0.40866]
[1750997341487,3.7786807,2446.0,2445.9,0.40866]
[1750997342181,1.0730807,2446.0,2445.9,3.34962022]
[1750997342382,0.7005,2446.0,2445.9,3.34962022]
[1750997343083,0.6841,2446.1,2446.0,0.40865]
[1750997343279,0.7005,2446.4,2446.0,6.74665]
[1750997343479,0.7005,2446.4,2446.3,3.34956022]
[1750997345675,3.2078,2446.5,2446.4,0.40858]
[1750997347978,0.6834,2446.7,2446.6,0.40855]
[1750997348187,2.133,2446.7,2446.6,0.40855]
[1750997349496,3.8919,2446.8,2446.7,0.40853]
[1750997349683,3.8919,2446.8,2446.7,3.34949022]
[1750997349989,0.6841,2446.8,2446.7,44.14949022]
[1750997352491,2.1881,2447.1,2447.0,0.40848]
[1750997352680,2.1881,2447.1,2447.0,3.34944022]
[1750997354681,2.1881,2447.1,2447.0,0.40848]
[1750997361111,2.1881,2447.1,2447.0,3.34944022]
[1750997371814,3.26220753,2447.1,2447.0,3.34944022]
[1750997376717,3.26220753,2447.1,2447.0,0.40848]
[1750997386130,3.26220753,2447.1,2447.0,3.34944022]
[1750997397841,9.41096775,2447.1,2446.5,3.2078]
[1750997398138,3.34946022,2446.9,2446.8,0.40851]
[1750997398332,4.01506775,2446.9,2446.4,6.328]
[1750997398536,6.73692753,2446.8,2446.6,0.40854]
[1750997398737,2.44880753,2446.7,2446.5,0.40856]
[1750997398931,3.10880753,2446.6,2446.5,41.20856]
[1750997400443,2.0347,2446.6,2446.5,44.14952022]
[1750997400737,0.66,2446.6,2446.5,44.14952022]
[1750997401243,0.66,2446.6,2446.5,47.35732022]
[1750997401445,0.66,2446.6,2446.5,48.03662022]
[1750997401642,0.66,2446.6,2446.5,47.35732022]
[1750997401947,1.7352579,2446.6,2446.5,6.55732022]
[1750997402242,3.0811579,2446.6,2446.5,6.55732022]
[1750997404247,3.0811579,2446.6,2446.5,3.34952022]
[1750997405746,2.0059,2446.6,2446.5,3.34952022]
[1750997409947,0.66,2446.6,2446.5,3.34952022]
[1750997411443,0.6718,2446.8,2446.7,0.40853]
[1750997411647,1.74633563,2446.8,2446.7,0.40853]
[1750997411848,3.19783563,2446.8,2446.7,0.40853]
[1750997412552,3.19783563,2446.8,2446.7,3.34949022]
[1750997412741,1.74633563,2446.8,2446.7,3.34949022]
[1750997412946,0.6817,2447.0,2446.9,0.4085]
[1750997413142,1.75617519,2447.0,2446.9,3.34946022]
[1750997415657,3.15897519,2447.0,2446.9,3.34946022]
[1750997424965,1.75617519,2447.0,2446.9,3.34946022]
[1750997428372,3.09857519,2447.0,2446.9,3.34946022]
[1750997428670,3.09857519,2447.0,2446.9,0.4085]
[1750997430973,1.75617519,2447.0,2446.9,0.4085]
[1750997431868,1.75617519,2447.0,2446.7,6.328]
[1750997432069,2.94096022,2446.8,2446.4,0.7055]
[1750997432268,6.14876022,2446.5,2445.9,3.2078]
[1750997432475,3.34956022,2446.3,2446.1,0.40862]
[1750997432680,1.4538,2446.2,2446.1,0.40862]
[1750997432872,2.1847,2446.2,2446.1,0.40862]
[1750997434374,2.59332,2446.2,2446.0,0.40864]
[1750997434676,1.4146,2446.1,2446.0,0.40864]
[1750997435971,0.7309,2446.2,2446.1,0.40863]
[1750997436177,2.21808999,2446.2,2445.9,3.61645]
[1750997436479,4.6224,2446.1,2445.9,6.73566]
[1750997436675,1.4146,2446.0,2445.9,6.73566]
[1750997438285,3.2078,2446.1,2446.0,0.40865]
[1750997438593,3.8894,2446.4,2446.3,0.4086]
[1750997438784,4.96684673,2446.4,2446.3,0.4086]
[1750997439385,6.41264673,2446.4,2446.3,0.4086]
[1750997442492,4.96684673,2446.4,2446.3,0.4086]
[1750997443798,4.28524673,2446.4,2446.3,0.4086]
[1750997444092,4.28524673,2446.4,2446.3,1.1011]
[1750997445599,4.28524673,2446.4,2446.3,7.4291]
[1750997445994,1.07744673,2446.4,2446.3,10.6369]
[1750997446197,3.2078,2446.7,2446.6,0.40855]
[1750997446495,1.3382,2446.8,2446.7,0.40853]
[1750997446698,2.41466494,2446.8,2446.7,0.40853]
[1750997451799,5.76414516,2446.8,2446.6,0.40854]
[1750997451998,0.40855,2446.6,2446.5,6.327]
[1750997452300,0.40855,2446.6,2446.5,6.73556]
[1750997452499,0.40856,2446.5,2446.4,6.327]
[1750997452695,4.31466022,2446.6,2446.1,6.327]
[1750997452897,5.3039,2446.4,2446.3,0.40858]
[1750997454699,6.38006629,2446.4,2446.3,0.40858]
[1750997457108,6.78864629,2446.4,2446.3,0.40858]
[1750997457404,6.38006629,2446.4,2446.3,0.40858]
[1750997458005,6.78864629,2446.4,2446.3,0.40858]
[1750997459004,6.78864629,2446.4,2446.2,0.4086]
[1750997459208,2.0591,2446.3,2446.2,0.4086]
[1750997459506,3.13664584,2446.3,2446.2,0.4086]
[1750997460209,2.0591,2446.3,2446.2,0.4086]
[1750997460408,3.13696203,2446.3,2446.2,0.4086]
[1750997469110,3.13696203,2446.3,2446.2,0.40861]
[1750997469312,3.54556203,2446.3,2446.0,3.2078]
[1750997469512,1.4132,2446.2,2446.1,0.40862]
[1750997469712,2.49200747,2446.2,2446.1,0.40862]
[1750997474812,1.07880747,2446.2,2446.1,0.40862]
[1750997478519,1.07880747,2446.2,2446.1,1.09882]
[1750997478712,1.07880747,2446.2,2446.1,4.30662]
[1750997478914,0.7121,2446.6,2446.5,0.40856]
[1750997479117,1.79350156,2446.6,2446.5,0.40856]
[1750997480120,1.08140156,2446.6,2446.5,1.13976]
[1750997485926,1.08140156,2446.6,2446.5,0.40856]
[1750997490335,2.40090156,2446.6,2446.4,6.328]
[1750997490528,1.08140156,2446.5,2446.4,6.328]
[1750997490728,2.40090156,2446.5,2446.4,6.73657]
[1750997491127,2.40090156,2446.5,2446.3,0.4086]
[1750997491331,4.21998156,2446.4,2446.2,6.73661]
[1750997491528,2.40090156,2446.3,2446.2,6.73661]
[1750997493131,2.40090156,2446.3,2446.2,9.67757022]
[1750997494234,1.08140156,2446.3,2446.2,9.67757022]
[1750997495031,1.4105,2446.4,2446.3,0.4086]
[1750997495237,2.49155122,2446.4,2446.3,0.4086]
[1750997499744,0.6885,2446.4,2446.3,0.4086]
[1750997499944,0.6761,2446.6,2446.5,0.40856]
[1750997500139,1.75736679,2446.6,2446.5,3.34952022]
[1750997500344,1.75736679,2446.6,2446.5,6.55732022]
[1750997502148,1.75736679,2446.6,2446.5,12.88532022]
[1750997503445,1.08126679,2446.6,2446.5,12.88532022]
[1750997506554,2.45686679,2446.6,2446.5,12.88532022]
[1750997510454,1.08126679,2446.6,2446.5,12.88532022]
[1750997515158,0.7165,2446.8,2446.7,0.40853]
[1750997515360,1.79809399,2446.8,2446.7,3.34949022]
[1750997518464,1.79809399,2446.8,2446.7,0.40853]
[1750997518761,1.08159399,2446.8,2446.7,3.34949022]
[1750997519857,1.08159399,2446.8,2446.7,44.14949022]
[1750997521164,2.8507,2447.1,2447.0,0.40848]
[1750997521362,3.93188568,2447.1,2447.0,9.67444022]
[1750997521757,1.79018568,2447.1,2447.0,9.67444022]
[1750997521958,1.79018568,2447.1,2447.0,10.38594022]
[1750997523167,1.79018568,2447.1,2447.0,9.67444022]
[1750997524666,1.79018568,2447.1,2447.0,6.73348]
[1750997527567,1.79018568,2447.1,2447.0,9.67444022]
[1750997537273,0.709,2447.1,2447.0,9.67444022]
[1750997539969,0.709,2447.1,2447.0,10.33544022]
[1750997541174,0.7293,2447.3,2447.2,0.40845]
[1750997541373,4.6209,2447.7,2447.6,0.40838]
[1750997541575,5.70168579,2447.7,2447.6,0.40838]
[1750997542380,6.11005579,2447.7,2447.5,0.40839]
[1750997542581,4.30986579,2447.6,2447.4,0.4084]
[1750997542779,2.49388579,2447.5,2447.4,0.4084]
[1750997547982,2.49388579,2447.5,2447.4,6.7284]
[1750997548478,2.49388579,2447.5,2447.4,9.66936022]
[1750997549500,2.49388579,2447.5,2447.4,34.39336022]
[1750997555000,0.40843,2447.3,2447.2,0.3514]
[1750997555206,0.40849,2447.0,2446.7,24.759]
[1750997555398,1.08078579,2446.9,2446.8,0.4085]
[1750997555594,2.45348579,2446.9,2446.7,25.16752]
[1750997555799,1.77978579,2446.8,2446.7,25.16752]
[1750997556001,3.15248579,2446.8,2446.7,25.16752]
[1750997556507,2.0717,2446.8,2446.7,25.16552]
[1750997557403,2.0717,2446.8,2446.7,6.321]
[1750997557404,3.5608367,2446.8,2446.7,6.321]
[1750997557707,9.1736267,2446.8,2446.0,0.31240625]
[1750997558008,0.40859,2446.4,2446.2,0.40861]
[1750997558207,2.0717,2446.3,2446.2,0.40861]
[1750997558408,2.7398,2446.3,2446.2,0.40861]
[1750997558801,2.7398,2446.3,2446.2,25.17361]
[1750997563207,2.7398,2446.3,2446.2,24.765]
[1750997563413,2.7398,2446.3,2446.2,25.17361]
[1750997564813,2.7398,2446.3,2446.2,0.40861]
[1750997565112,2.7398,2446.3,2446.2,31.49061]
[1750997566815,2.7398,2446.3,2446.2,0.40861]
[1750997567016,2.7398,2446.3,2446.2,31.48761]
[1750997567918,2.7398,2446.3,2446.2,31.48361]
[1750997569122,2.7398,2446.3,2446.2,0.40861]
[1750997569414,3.1484,2446.3,2446.2,25.16161]
[1750997569819,0.40864,2446.1,2445.9,6.73065]
[1750997570014,0.40864,2446.1,2446.0,24.748]
[1750997570520,0.40865,2446.0,2445.9,6.73065]
[1750997570718,0.40865,2446.0,2445.9,31.48265]
[1750997571215,0.40865,2446.0,2445.9,31.074]
[1750997571423,0.40865,2446.0,2445.9,6.322]
[1750997571724,0.40866,2445.9,2445.8,0.40867]
[1750997571923,2.47846,2445.9,2445.8,31.48067]
[1750997572525,2.0698,2445.9,2445.8,31.48067]
[1750997574323,3.61643,2446.2,2446.0,0.40864]
[1750997574521,0.6798,2446.1,2446.0,0.40864]
[1750997574723,2.0366,2446.1,2446.0,25.16064]
[1750997575025,2.44523,2446.1,2446.0,24.752]
[1750997575624,2.44523,2446.1,2446.0,25.16065]
[1750997577434,2.0366,2446.1,2446.0,25.16065]
[1750997580027,2.0366,2446.1,2446.0,0.40865]
[1750997583336,3.1160622,2446.1,2446.0,0.40865]
[1750997583835,2.0366,2446.1,2446.0,0.40865]
[1750997584336,3.11704586,2446.1,2446.0,0.40865]
[1750997595458,3.52567586,2446.1,2445.9,1.09635]
[1750997595661,1.08044586,2446.0,2445.9,25.14465]
[1750997597556,1.48909586,2446.0,2445.9,25.14465]
[1750997597859,1.48910586,2446.0,2445.9,25.14466]
[1750997598050,2.83160586,2446.0,2445.9,25.14466]
[1750997598251,2.83160586,2446.0,2445.9,24.736]
[1750997598663,2.83160586,2446.0,2445.9,25.14466]
[1750997601366,2.83160586,2446.0,2445.9,0.40866]
[1750997604764,0.40866,2445.9,2445.8,31.47667]
[1750997605060,0.4087,2445.7,2445.4,6.332]
[1750997605267,3.20119,2445.8,2445.6,0.40871]
[1750997605460,2.48148559,2445.7,2445.6,0.40871]
[1750997605868,2.89018559,2445.7,2445.6,0.40871]
[1750997606261,2.48148559,2445.7,2445.6,0.40871]
[1750997607268,2.89018559,2445.7,2445.5,25.14472]
[1750997607469,1.08258559,2445.6,2445.5,25.14472]
[1750997608569,1.8076,2445.7,2445.5,25.14472]
[1750997608773,0.40873,2445.6,2445.4,6.73274]
[1750997608971,0.40873,2445.5,2445.4,6.324]
[1750997609169,1.10553,2445.5,2445.2,0.40877]
[1750997609372,1.08164139,2445.4,2445.3,0.40876]
[1750997609572,1.08164139,2445.4,2445.3,31.46976]
[1750997610166,1.08164139,2445.4,2445.3,0.40876]
[1750997610365,1.08164139,2445.4,2445.3,31.46976]
[1750997611167,1.08164139,2445.4,2445.3,0.40876]
[1750997611472,1.08164139,2445.4,2445.3,31.47176]
[1750997611767,1.08164139,2445.4,2445.3,31.47076]
[1750997612464,1.08164139,2445.4,2445.3,0.40876]
[1750997612665,1.08164139,2445.4,2445.3,31.47076]
[1750997613063,2.47699,2445.8,2445.6,0.4087]
[1750997613368,1.48971235,2445.7,2445.5,0.40872]
[1750997613570,1.08101235,2445.6,2445.5,0.40872]
[1750997613772,1.48973235,2445.6,2445.4,1.09014]
[1750997613971,1.74301235,2445.5,2445.4,0.40874]
[1750997615970,1.74301235,2445.5,2445.4,25.14774]
[1750997617174,1.74301235,2445.5,2445.4,0.40874]
[1750997617370,1.74301235,2445.5,2445.4,25.14774]
[1750997618872,1.74301235,2445.5,2445.4,0.40874]
[1750997619073,1.74301235,2445.5,2445.4,25.14774]
[1750997620872,1.74301235,2445.5,2445.4,25.14874]
[1750997623278,1.74301235,2445.5,2445.4,0.40874]
[1750997623479,1.74301235,2445.5,2445.4,25.14874]
[1750997626179,1.74301235,2445.5,2445.4,0.40874]
[1750997626379,1.74301235,2445.5,2445.4,25.14874]
[1750997628682,0.44142196,2445.5,2445.4,33.08970022]
[1750997628984,3.2078,2445.9,2445.8,0.40868]
[1750997629178,3.2078,2445.9,2445.7,25.14769]
[1750997629375,3.61647,2445.9,2445.7,24.739]
[1750997629780,4.93397,2445.9,2445.7,24.739]
[1750997630482,4.5253,2445.9,2445.8,0.40868]
[1750997631279,4.93396,2445.9,2445.8,0.40868]
[1750997631481,4.93398,2445.9,2445.7,25.14769]
[1750997631781,4.93398,2445.9,2445.8,0.40868]
[1750997631983,4.93398,2445.9,2445.7,24.739]
[1750997632175,4.93398,2445.9,2445.8,0.40868]
[1750997632372,4.93398,2445.9,2445.7,25.14768]
[1750997634183,4.72705022,2445.8,2445.6,25.14671]
[1750997634377,1.78608,2445.8,2445.7,0.4087]
[1750997634577,1.78608,2445.8,2445.6,25.14671]
[1750997635287,1.78608,2445.8,2445.7,0.4087]
[1750997635587,1.78608,2445.8,2445.6,25.14671]
[1750997635984,0.7088,2445.7,2445.6,25.14671]
[1750997637586,1.1175,2445.7,2445.6,25.14671]
[1750997637788,0.7088,2445.7,2445.6,25.14671]
[1750997638493,1.1175,2445.7,2445.6,24.738]
[1750997638692,1.1175,2445.7,2445.6,25.14671]
[1750997638990,2.5645,2445.7,2445.6,25.14671]
[1750997639589,4.2152915,2445.7,2445.6,25.14671]
[1750997639789,4.6239915,2445.7,2445.6,25.14671]
[1750997640589,4.6239915,2445.7,2445.6,24.738]
[1750997640790,5.70248521,2445.7,2445.6,24.738]
[1750997641090,5.70248521,2445.7,2445.6,25.14671]
[1750997641695,5.29378521,2445.7,2445.6,25.14671]
[1750997643988,1.07849371,2445.7,2445.6,25.14671]
[1750997647296,1.48719371,2445.7,2445.6,24.738]
[1750997647498,4.26018521,2445.7,2445.6,24.738]
[1750997647700,5.70278521,2445.7,2445.6,25.14671]
[1750997648098,5.29408521,2445.7,2445.6,25.14671]
[1750997648401,3.64329371,2445.7,2445.6,25.14671]
[1750997648598,5.29408521,2445.7,2445.6,25.14671]
[1750997648798,5.70278521,2445.7,2445.6,0.40871]
[1750997649097,5.70278521,2445.7,2445.6,25.14371]
[1750997649599,5.29408521,2445.7,2445.6,25.14371]
[1750997650303,5.29429749,2445.7,2445.6,25.14371]
[1750997652200,3.23480599,2445.7,2445.6,25.14371]
[1750997659310,1.79220599,2445.7,2445.6,25.14371]
[1750997660512,1.07870599,2445.7,2445.6,25.14371]
[1750997667223,1.07870599,2445.7,2445.6,28.35151]
[1750997670723,1.07870599,2445.7,2445.6,25.14371]
[1750997671624,3.13819749,2445.7,2445.6,25.14371]
[1750997675930,1.07870599,2445.7,2445.6,35.4110015]
[1750997676230,2.44646815,2446.6,2445.8,1.02169]
[1750997676432,3.13346815,2446.6,2446.5,0.40856]
[1750997676822,4.56596815,2446.6,2446.5,0.40856]
[1750997677630,3.87896815,2446.6,2446.5,0.40856]
[1750997677832,2.44646815,2446.6,2446.5,0.40856]
[1750997679433,5.65426815,2446.7,2446.6,0.40855]
[1750997679633,7.05616815,2446.7,2446.6,0.40855]
[1750997680028,4.6097,2446.7,2446.6,0.40855]
[1750997680230,7.0565425,2446.7,2446.6,0.40855]
[1750997683032,7.0565425,2446.7,2446.3,25.3936]